bitfinex/quotes_BTCUSD_20250601
["timestamp","ask_amount","ask_price","bid_price","bid_amount"]
[1748810276770,0.11999248,105210.0,105200.0,1.06179381]
[1748810277204,0.11999248,105210.0,105200.0,1.0684494]
[1748810277418,0.11999248,105210.0,105200.0,1.08620152]
[1748810278267,0.11999248,105210.0,105200.0,1.086203]
[1748810278577,0.11999248,105210.0,105200.0,1.06845086]
[1748810278713,0.11999248,105210.0,105200.0,1.07955242]
[1748810278947,0.11999248,105210.0,105200.0,1.06845328]
[1748810279151,0.11999248,105210.0,105200.0,1.08621189]
[1748810279353,0.11999248,105210.0,105200.0,1.06179381]
[1748810279581,0.11999248,105210.0,105200.0,0.77646073]
[1748810279790,0.13589248,105210.0,105200.0,1.06151381]
[1748810280175,0.11999248,105210.0,105200.0,1.06151381]
[1748810280346,0.13589248,105210.0,105200.0,1.06151381]
[1748810280856,0.13589248,105210.0,105200.0,0.62802935]
[1748810281480,0.13589248,105210.0,105200.0,0.62802942]
[1748810282070,0.13589248,105210.0,105200.0,0.64580985]
[1748810282340,0.13589248,105210.0,105200.0,0.63469709]
[1748810282489,0.13589248,105210.0,105200.0,0.65247746]
[1748810282698,0.13589248,105210.0,105200.0,1.06143388]
[1748810283093,0.13589248,105210.0,105200.0,1.07921424]
[1748810283319,0.13589248,105210.0,105200.0,1.06143388]
[1748810283697,0.11999248,105210.0,105200.0,1.06810169]
[1748810283909,0.11999248,105210.0,105200.0,1.06143388]
[1748810284128,0.11999248,105210.0,105200.0,1.06810175]
[1748810284490,0.11999248,105210.0,105200.0,1.06143388]
[1748810285720,0.10489248,105210.0,105200.0,1.06143388]
[1748810285960,0.10489248,105210.0,105200.0,1.08588446]
[1748810286144,0.10489248,105210.0,105200.0,1.08588483]
[1748810286350,0.10489248,105210.0,105200.0,1.07921642]
[1748810286551,0.10489248,105210.0,105200.0,1.08588491]
[1748810286751,0.10489248,105210.0,105200.0,1.07921652]
[1748810286978,0.10489248,105210.0,105200.0,1.08588501]
[1748810287624,0.10489248,105210.0,105200.0,1.06143388]
[1748810288252,0.10489248,105210.0,105200.0,1.06810231]
[1748810288465,0.10489248,105210.0,105200.0,1.06143388]
[1748810288687,0.10489248,105210.0,105200.0,0.79424479]
[1748810288909,0.10489248,105210.0,105200.0,1.06103388]
[1748810289175,0.10489248,105210.0,105200.0,0.64541201]
[1748810289417,0.10489248,105210.0,105200.0,0.62762942]
[1748810289631,0.10489248,105210.0,105200.0,0.63429783]
[1748810289847,0.10489248,105210.0,105200.0,0.64541186]
[1748810290059,0.10489248,105210.0,105200.0,0.62762942]
[1748810290952,0.10489248,105210.0,105200.0,0.64541206]
[1748810291180,0.10489248,105210.0,105200.0,0.65208055]
[1748810291404,0.10489248,105210.0,105200.0,0.62762942]
[1748810291660,0.10489248,105210.0,105200.0,1.06103388]
[1748810292094,0.10489248,105210.0,105200.0,1.07881693]
[1748810292303,0.10489248,105210.0,105200.0,1.06103388]
[1748810292950,0.10489248,105210.0,105200.0,1.07881688]
[1748810293577,0.10489248,105210.0,105200.0,1.0677025]
[1748810293793,0.10489248,105210.0,105200.0,0.76979388]
[1748810294000,0.10489248,105210.0,105200.0,1.06079388]
[1748810294200,0.10489248,105210.0,105200.0,1.07857718]
[1748810294410,0.10489248,105210.0,105200.0,1.06079388]
[1748810294823,0.10489248,105210.0,105200.0,1.07857666]
[1748810295031,0.10489248,105210.0,105200.0,1.07857652]
[1748810295249,0.10489248,105210.0,105200.0,1.06746237]
[1748810295470,0.10489248,105210.0,105200.0,0.62738942]
[1748810295685,0.10489248,105210.0,105200.0,1.06746238]
[1748810295904,0.10489248,105210.0,105200.0,1.0852449]
[1748810296111,0.10489248,105210.0,105200.0,1.0674623]
[1748810296320,0.10489248,105210.0,105200.0,1.08524462]
[1748810296537,0.10489248,105210.0,105200.0,1.08524453]
[1748810296772,0.10489248,105210.0,105200.0,1.08524486]
[1748810297104,0.10489248,105210.0,105200.0,1.06746233]
[1748810297523,0.10489248,105210.0,105200.0,1.0852449]
[1748810297734,0.10489248,105210.0,105200.0,1.08524427]
[1748810297958,0.10489248,105210.0,105200.0,1.06079388]
[1748810298177,0.10489248,105210.0,105200.0,1.06746217]
[1748810298388,0.10489248,105210.0,105200.0,1.08524429]
[1748810298775,0.10489248,105210.0,105200.0,1.06746217]
[1748810298981,0.10489248,105210.0,105200.0,1.08524428]
[1748810299202,0.10489248,105210.0,105200.0,1.08524425]
[1748810300028,0.10489248,105210.0,105200.0,1.08524421]
[1748810300237,0.10489248,105210.0,105200.0,1.06746215]
[1748810300447,0.10489248,105210.0,105200.0,1.08524421]
[1748810300641,0.10489248,105210.0,105200.0,1.06079388]
[1748810300853,0.10489248,105210.0,105200.0,1.08524421]
[1748810301473,0.10489248,105210.0,105200.0,1.07857566]
[1748810301672,0.10489248,105210.0,105200.0,1.08524382]
[1748810301888,0.10489248,105210.0,105200.0,1.07857589]
[1748810302093,0.10489248,105210.0,105200.0,1.08524411]
[1748810302520,0.10489248,105210.0,105200.0,1.08524416]
[1748810302727,0.10489248,105210.0,105200.0,1.08524417]
[1748810303309,0.10489248,105210.0,105200.0,1.0852445]
[1748810303521,0.10489248,105210.0,105200.0,1.07845615]
[1748810303698,0.10489248,105210.0,105200.0,1.06067388]
[1748810303903,0.10489248,105210.0,105200.0,1.08512524]
[1748810304137,0.10489248,105210.0,105200.0,1.07845668]
[1748810304382,0.10489248,105210.0,105200.0,1.08512523]
[1748810304582,0.10489248,105210.0,105200.0,1.08512524]
[1748810305125,0.10489248,105210.0,105200.0,1.08512523]
[1748810305815,0.10489248,105210.0,105200.0,1.08512602]
[1748810306161,0.10489248,105210.0,105200.0,0.65172154]
[1748810306736,0.10489248,105210.0,105200.0,0.64505278]
[1748810306946,0.10489248,105210.0,105200.0,0.65172154]
[1748810307151,0.10489248,105210.0,105200.0,0.63393896]
[1748810307364,0.10489248,105210.0,105200.0,0.6468603]
[1748810307569,0.10489248,105210.0,105200.0,0.62240527]
[1748810308665,0.10489248,105210.0,105200.0,1.05580973]
[1748810309307,0.10489248,105210.0,105200.0,1.06247928]
[1748810309515,0.10489248,105210.0,105200.0,1.05580973]
[1748810309721,0.10489248,105210.0,105200.0,1.08026476]
[1748810309926,0.10489248,105210.0,105200.0,1.05580973]
[1748810310083,0.10489248,105210.0,105200.0,1.08026476]
[1748810310318,0.10489248,105210.0,105200.0,1.05580973]
[1748810310788,0.10489248,105210.0,105200.0,1.06247914]
[1748810310940,0.10489248,105210.0,105200.0,1.05580973]
[1748810311142,0.10489248,105210.0,105200.0,1.08026413]
[1748810311673,0.10489248,105210.0,105200.0,1.0802641]
[1748810311904,0.10489248,105210.0,105200.0,1.08026409]
[1748810312094,0.10489248,105210.0,105200.0,1.07359472]
[1748810312296,0.10489248,105210.0,105200.0,1.0624791]
[1748810312503,0.10489248,105210.0,105200.0,1.05580973]
[1748810312654,0.10489248,105210.0,105200.0,1.07359473]
[1748810312871,0.10489248,105210.0,105200.0,1.05580971]
[1748810313068,0.10489248,105210.0,105200.0,1.08026407]
[1748810313300,0.10489248,105210.0,105200.0,1.05468971]
[1748810314822,0.10489248,105210.0,105200.0,1.0724747]
[1748810315262,0.10489248,105210.0,105200.0,1.06802845]
[1748810315488,0.10489248,105210.0,105200.0,1.07914407]
[1748810315716,0.10489248,105210.0,105200.0,1.08581344]
[1748810316315,0.10489248,105210.0,105200.0,1.08581338]
[1748810316716,0.10489248,105210.0,105200.0,1.07914404]
[1748810316951,0.10489248,105210.0,105200.0,1.06135908]
[1748810317359,0.10489248,105210.0,105200.0,1.06498758]
[1748810317568,0.10489248,105210.0,105200.0,1.09345908]
[1748810317817,0.10489248,105210.0,105200.0,1.11791344]
[1748810318369,0.10489248,105210.0,105200.0,1.11791347]
[1748810318550,0.10489248,105210.0,105200.0,1.11124409]
[1748810318762,0.10489248,105210.0,105200.0,1.09345908]
[1748810318976,0.10489248,105210.0,105200.0,1.11791347]
[1748810320111,0.10489248,105210.0,105200.0,1.10012846]
[1748810320348,0.10489248,105210.0,105200.0,1.11791349]
[1748810320812,0.10489248,105210.0,105200.0,1.09345908]
[1748810321452,0.10489248,105210.0,105200.0,1.10012846]
[1748810321664,0.10489248,105210.0,105200.0,1.10012847]
[1748810321880,0.10489248,105210.0,105200.0,1.09345908]
[1748810322084,0.10489248,105210.0,105200.0,1.10012859]
[1748810322291,0.10489248,105210.0,105200.0,1.09345908]
[1748810323177,0.10489248,105210.0,105200.0,1.11791382]
[1748810323445,0.10489248,105210.0,105200.0,1.11124435]
[1748810323643,0.10489248,105210.0,105200.0,1.10012858]
[1748810323953,0.10489248,105210.0,105200.0,1.10012859]
[1748810324115,0.10489248,105210.0,105200.0,1.09345908]
[1748810324543,0.10489248,105210.0,105200.0,1.10012859]
[1748810324690,0.10489248,105210.0,105200.0,1.09345908]
[1748810325806,0.10489248,105210.0,105200.0,1.10012859]
[1748810326018,0.10489248,105210.0,105200.0,1.09345908]
[1748810326215,0.10489248,105210.0,105200.0,1.1001286]
[1748810326682,0.10489248,105210.0,105200.0,1.11791406]
[1748810327588,0.10489248,105210.0,105200.0,1.11791408]
[1748810328626,0.10489248,105210.0,105200.0,1.11791414]
[1748810329036,0.10489248,105210.0,105200.0,1.11791415]
[1748810329230,0.10489248,105210.0,105200.0,1.11124459]
[1748810329438,0.10489248,105210.0,105200.0,1.11124461]
[1748810329768,0.10489248,105210.0,105200.0,1.11791418]
[1748810329971,0.10489248,105210.0,105200.0,1.09289908]
[1748810330181,0.10489248,105210.0,105200.0,1.11735425]
[1748810330625,0.10489248,105210.0,105200.0,1.09289908]
[1748810330840,0.10489248,105210.0,105200.0,1.09652783]
[1748810331065,0.10489248,105210.0,105200.0,1.11735437]
[1748810331419,0.10489248,105210.0,105200.0,1.0995687]
[1748810331632,0.10489248,105210.0,105200.0,1.11735437]
[1748810331833,0.10489248,105210.0,105200.0,1.11735431]
[1748810332199,0.10489248,105210.0,105200.0,1.11735439]
[1748810334111,0.10489248,105210.0,105200.0,1.11735487]
[1748810334732,0.10489248,105210.0,105200.0,1.11735499]
[1748810334999,0.10489248,105210.0,105200.0,1.11735502]
[1748810335235,0.10489248,105210.0,105200.0,1.09956889]
[1748810335459,0.10489248,105210.0,105200.0,1.09289908]
[1748810336151,0.10489248,105210.0,105200.0,1.11068545]
[1748810336353,0.10489248,105210.0,105200.0,1.09289908]
[1748810336974,0.10489248,105210.0,105200.0,1.099569]
[1748810337181,0.10489248,105210.0,105200.0,1.09289908]
[1748810337721,0.10489248,105210.0,105200.0,1.11735545]
[1748810337950,0.10489248,105210.0,105200.0,1.099569]
[1748810338142,0.10489248,105210.0,105200.0,1.09289908]
[1748810339179,0.10489248,105210.0,105200.0,1.11068553]
[1748810339497,0.10489248,105210.0,105200.0,1.099569]
[1748810339634,0.10489248,105210.0,105200.0,1.09289908]
[1748810339847,0.10489248,105210.0,105200.0,1.09652813]
[1748810340047,0.10489248,105210.0,105200.0,1.09289908]
[1748810340698,0.10489248,105210.0,105200.0,1.099569]
[1748810340870,0.10489248,105210.0,105200.0,1.09289908]
[1748810341273,0.10489248,105210.0,105200.0,1.11068553]
[1748810341479,0.10489248,105210.0,105200.0,1.09289908]
[1748810341685,0.10489248,105210.0,105200.0,1.07709908]
[1748810342513,0.10489248,105210.0,105200.0,1.10155546]
[1748810342736,0.10489248,105210.0,105200.0,1.09851459]
[1748810342956,0.10489248,105210.0,105200.0,1.10155546]
[1748810344980,0.10489248,105210.0,105200.0,1.083769]
[1748810345173,0.10489248,105210.0,105200.0,1.10155546]
[1748810345607,0.10489248,105210.0,105200.0,1.07709908]
[1748810345817,0.10489248,105210.0,105200.0,1.10155547]
[1748810346443,0.10489248,105210.0,105200.0,1.1015555]
[1748810346600,0.10489248,105210.0,105200.0,1.08376901]
[1748810346802,0.10489248,105210.0,105200.0,1.1015555]
[1748810347028,0.10489248,105210.0,105200.0,1.06746901]
[1748810347253,0.10489248,105210.0,105200.0,1.0852555]
[1748810347457,0.10489248,105210.0,105200.0,1.07858557]
[1748810347666,0.10489248,105210.0,105200.0,1.0852555]
[1748810348170,0.10489248,105210.0,105200.0,1.06746901]
[1748810348374,0.10489248,105210.0,105200.0,1.08525554]
[1748810348735,0.10489248,105210.0,105200.0,1.08525557]
[1748810349575,0.10489248,105210.0,105200.0,1.10035557]
[1748810350234,0.10489248,105210.0,105200.0,1.10035559]
[1748810350829,0.10489248,105210.0,105200.0,1.10035566]
[1748810352052,0.10489248,105210.0,105200.0,1.53376012]
[1748810352468,0.10489248,105210.0,105200.0,1.52709015]
[1748810352637,0.10489248,105210.0,105200.0,1.53376013]
[1748810352868,0.10489248,105210.0,105200.0,1.51597352]
[1748810353044,0.10489248,105210.0,105200.0,1.54487676]
[1748810353249,0.10489248,105210.0,105200.0,1.53376013]
[1748810353946,0.10489248,105210.0,105200.0,1.51597352]
[1748810354147,0.10489248,105210.0,105200.0,1.08256906]
[1748810354351,0.10489248,105210.0,105200.0,1.10035567]
[1748810354553,0.10489248,105210.0,105200.0,1.07589908]
[1748810354759,0.10489248,105210.0,105200.0,1.10035594]
[1748810354970,0.10489248,105210.0,105200.0,1.10035595]
[1748810355196,0.10489248,105210.0,105200.0,1.10035598]
[1748810356318,0.10489248,105210.0,105200.0,1.08256914]
[1748810356574,0.10489248,105210.0,105200.0,1.10035598]
[1748810356779,0.10489248,105210.0,105200.0,1.100356]
[1748810356995,0.10489248,105210.0,105200.0,1.08256915]
[1748810357197,0.10489248,105210.0,105200.0,1.085256]
[1748810358529,0.10489248,105210.0,105200.0,1.08525479]
[1748810358722,0.10489248,105210.0,105200.0,1.06746806]
[1748810358957,0.10489248,105210.0,105200.0,1.08525204]
[1748810359719,0.10489248,105210.0,105200.0,1.08525207]
[1748810360137,0.10489248,105210.0,105200.0,1.08525208]
[1748810360353,0.10489248,105210.0,105200.0,1.06075908]
[1748810361023,0.10489248,105210.0,105200.0,1.08521202]
[1748810361243,0.10489248,105210.0,105200.0,1.06742802]
[1748810361674,0.10489248,105210.0,105200.0,1.08521202]
[1748810362303,0.10489248,105210.0,105200.0,1.07854261]
[1748810362525,0.10489248,105210.0,105200.0,1.07854262]
[1748810362745,0.10489248,105210.0,105200.0,1.08521148]
[1748810364096,0.10489248,105210.0,105200.0,1.08521185]
[1748810364317,0.10489248,105210.0,105200.0,1.07854305]
[1748810364538,0.10489248,105210.0,105200.0,1.08521206]
[1748810364767,0.10489248,105210.0,105200.0,1.08521171]
[1748810366551,0.10489248,105210.0,105200.0,1.06742793]
[1748810366766,0.10489248,105210.0,105200.0,1.0785428]
[1748810367005,0.10489248,105210.0,105200.0,1.06075902]
[1748810367511,0.10489248,105210.0,105200.0,1.0785428]
[1748810367724,0.10489248,105210.0,105200.0,1.08521171]
[1748810368152,0.10489248,105210.0,105200.0,1.0852116]
[1748810368352,0.10489248,105210.0,105200.0,1.06742789]
[1748810368560,0.10489248,105210.0,105200.0,1.08521147]
[1748810368919,0.10489248,105210.0,105200.0,1.06075902]
[1748810369298,0.10489248,105210.0,105200.0,1.07854262]
[1748810369502,0.10489248,105210.0,105200.0,1.08521147]
[1748810370124,0.10489248,105210.0,105200.0,1.07854262]
[1748810370353,0.10489248,105210.0,105200.0,1.08521147]
[1748810370869,0.10489248,105210.0,105200.0,1.08521141]
[1748810371513,0.10489248,105210.0,105200.0,1.09504258]
[1748810371733,0.10489248,105210.0,105200.0,1.11024258]
[1748810371954,0.10489248,105210.0,105200.0,1.11691141]
[1748810372164,0.10489248,105210.0,105200.0,1.09912785]
[1748810372366,0.10489248,105210.0,105200.0,0.65905456]
[1748810372571,0.10489248,105210.0,105200.0,1.55031587]
[1748810372988,0.10489248,105210.0,105200.0,1.55031584]
[1748810373196,0.10489248,105210.0,105200.0,1.55031499]
[1748810373817,0.10489248,105210.0,105200.0,1.55031311]
[1748810374032,0.10489248,105210.0,105200.0,1.55031308]
[1748810374241,0.10489248,105210.0,105200.0,1.54364503]
[1748810374457,0.10489248,105210.0,105200.0,1.52586348]
[1748810374661,0.10489248,105210.0,105200.0,1.55031311]
[1748810374873,0.10489248,105210.0,105200.0,0.68350419]
[1748810375105,0.10489248,105210.0,105200.0,1.55031311]
[1748810375620,0.10489248,105210.0,105200.0,1.55031114]
[1748810376061,0.10489248,105210.0,105200.0,1.52586348]
[1748810376276,0.10489248,105210.0,105200.0,1.55031131]
[1748810376530,0.10489248,105210.0,105200.0,1.55030982]
[1748810376735,0.10489248,105210.0,105200.0,1.55030911]
[1748810377181,0.10489248,105210.0,105200.0,1.55030908]
[1748810377388,0.10489248,105210.0,105200.0,1.52586336]
[1748810377612,0.10489248,105210.0,105200.0,1.55030713]
[1748810377827,0.10489248,105210.0,105200.0,1.55030709]
[1748810378036,0.10489248,105210.0,105200.0,1.55030698]
[1748810378466,0.10489248,105210.0,105200.0,1.54364054]
[1748810378675,0.10489248,105210.0,105200.0,1.52586334]
[1748810378882,0.10489248,105210.0,105200.0,1.55030582]
[1748810379336,0.10489248,105210.0,105200.0,1.55030559]
[1748810379758,0.10489248,105210.0,105200.0,1.55030513]
[1748810379971,0.10489248,105210.0,105200.0,1.53252929]
[1748810380412,0.10489248,105210.0,105200.0,1.55030516]
[1748810381436,0.08208789,105210.0,105200.0,2.44016116]
[1748810381653,0.08208789,105210.0,105200.0,2.422372]
[1748810381862,0.08208789,105210.0,105200.0,2.42237141]
[1748810382101,0.08208789,105210.0,105200.0,2.41571096]
[1748810382344,0.08208789,105210.0,105200.0,2.40461014]
[1748810382587,0.08208789,105210.0,105200.0,2.39794975]
[1748810383035,0.08208789,105210.0,105200.0,2.42237134]
[1748810383253,0.08208789,105210.0,105200.0,2.40461015]
[1748810383462,0.08208789,105210.0,105200.0,2.41571091]
[1748810383668,0.08208789,105210.0,105200.0,2.3979494]
[1748810384115,0.08208789,105210.0,105200.0,2.41571103]
[1748810384327,0.08208789,105210.0,105200.0,2.3979494]
[1748810384538,0.08208789,105210.0,105200.0,2.41571088]
[1748810384743,0.08208789,105210.0,105200.0,2.3979494]
[1748810384951,0.08208789,105210.0,105200.0,2.40460995]
[1748810385170,0.08208789,105210.0,105200.0,2.3979494]
[1748810385805,0.08208789,105210.0,105200.0,2.42237129]
[1748810386012,0.08208789,105210.0,105200.0,2.71497129]
[1748810386218,0.08208789,105210.0,105200.0,2.71497128]
[1748810386906,0.08208789,105210.0,105200.0,2.70831077]
[1748810387123,0.08208789,105210.0,105200.0,2.71497116]
[1748810387544,0.08208789,105210.0,105200.0,2.70830358]
[1748810387754,0.08208789,105210.0,105200.0,2.71496138]
[1748810388233,0.08208789,105210.0,105200.0,2.7149614]
[1748810388448,0.08208789,105210.0,105200.0,2.68744526]
[1748810388655,0.08208789,105210.0,105200.0,2.7051988]
[1748810388861,0.08208789,105210.0,105200.0,2.70519281]
[1748810390136,0.08208789,105210.0,105200.0,2.68744345]
[1748810390348,0.08208789,105210.0,105200.0,2.70519283]
[1748810390536,0.08208789,105210.0,105200.0,2.68744346]
[1748810390742,0.08208789,105210.0,105200.0,2.68078744]
[1748810390902,0.08208789,105210.0,105200.0,2.70519284]
[1748810391310,0.08208789,105210.0,105200.0,2.70519017]
[1748810392105,0.08208789,105210.0,105200.0,2.69853415]
[1748810392308,0.08208789,105210.0,105200.0,2.24738298]
[1748810392500,0.08208789,105210.0,105200.0,2.27178411]
[1748810392703,0.08208789,105210.0,105200.0,2.27178179]
[1748810393951,0.08208789,105210.0,105200.0,2.27178147]
[1748810394160,0.08208789,105210.0,105200.0,2.26512734]
[1748810394357,0.08208789,105210.0,105200.0,2.27178147]
[1748810394563,0.08208789,105210.0,105200.0,2.27178113]
[1748810395501,0.08208789,105210.0,105200.0,2.27178096]
[1748810395679,0.08208789,105210.0,105200.0,2.24738298]
[1748810395881,0.08208789,105210.0,105200.0,2.2717796]
[1748810396084,0.08208789,105210.0,105200.0,2.24738298]
[1748810396468,0.0592855,105210.0,105200.0,2.24738298]
[1748810396867,0.0592855,105210.0,105200.0,2.2717796]
[1748810397070,0.0592855,105210.0,105200.0,2.24738298]
[1748810397268,0.0592855,105210.0,105200.0,2.2717796]
[1748810397470,0.0592855,105210.0,105200.0,2.2540366]
[1748810397676,0.0592855,105210.0,105200.0,2.27178025]
[1748810397927,0.0592855,105210.0,105200.0,2.26512645]
[1748810398110,0.0592855,105210.0,105200.0,2.68078744]
[1748810398748,0.0592855,105210.0,105200.0,2.24738298]
[1748810399286,0.0592855,105210.0,105200.0,2.25403709]
[1748810399948,0.0592855,105210.0,105200.0,2.27178139]
[1748810400220,0.0592855,105210.0,105200.0,2.25403709]
[1748810400424,0.0592855,105210.0,105200.0,2.68744155]
[1748810400848,0.0592855,105210.0,105200.0,2.70518725]
[1748810401061,0.0592855,105210.0,105200.0,2.68744155]
[1748810401472,0.0592855,105210.0,105200.0,2.70385814]
[1748810401685,0.0592855,105210.0,105200.0,2.70385828]
[1748810401894,0.0592855,105210.0,105200.0,2.6972035]
[1748810402123,0.0592855,105210.0,105200.0,2.70385832]
[1748810402335,0.0592855,105210.0,105200.0,2.6972035]
[1748810402957,0.0592855,105210.0,105200.0,2.714952]
[1748810403142,0.0592855,105210.0,105200.0,2.6972035]
[1748810403383,0.0592855,105210.0,105200.0,2.714952]
[1748810403531,0.0592855,105210.0,105200.0,2.70385919]
[1748810403763,0.0592855,105210.0,105200.0,2.714952]
[1748810403981,0.0592855,105210.0,105200.0,2.70385919]
[1748810404142,0.0592855,105210.0,105200.0,2.70385915]
[1748810404375,0.0592855,105210.0,105200.0,2.6972035]
[1748810405007,0.0592855,105210.0,105200.0,2.7079465]
[1748810405491,0.0592855,105210.0,105200.0,2.71460191]
[1748810405726,0.0592855,105210.0,105200.0,2.7079465]
[1748810406143,0.0592855,105210.0,105200.0,2.73234967]
[1748810406349,0.0592855,105210.0,105200.0,2.73235129]
[1748810406595,0.0592855,105210.0,105200.0,2.71460235]
[1748810406798,0.0592855,105210.0,105200.0,2.73235129]
[1748810406997,0.0592855,105210.0,105200.0,2.29894683]
[1748810407469,0.0592855,105210.0,105200.0,2.29895091]
[1748810408574,0.0592855,105210.0,105200.0,2.27454197]
[1748810408760,0.0592855,105210.0,105200.0,2.73236263]
[1748810409416,0.0592855,105210.0,105200.0,2.71461054]
[1748810409623,0.0592855,105210.0,105200.0,2.73238151]
[1748810410246,0.0592855,105210.0,105200.0,2.7257174]
[1748810410454,0.0592855,105210.0,105200.0,2.73238151]
[1748810410658,0.0592855,105210.0,105200.0,2.73238077]
[1748810410861,0.0592855,105210.0,105200.0,2.72571683]
[1748810411087,0.0592855,105210.0,105200.0,2.71461033]
[1748810411299,0.0592855,105210.0,105200.0,2.73238073]
[1748810411928,0.0592855,105210.0,105200.0,2.72934049]
[1748810412176,0.0592855,105210.0,105200.0,2.73238073]
[1748810412392,0.0592855,105210.0,105200.0,2.73238294]
[1748810412812,0.0592855,105210.0,105200.0,2.73238253]
[1748810413032,0.0592855,105210.0,105200.0,2.72571814]
[1748810413247,0.0592855,105210.0,105200.0,2.73238253]
[1748810413684,0.0592855,105210.0,105200.0,2.72571814]
[1748810413892,0.0592855,105210.0,105200.0,2.73238253]
[1748810414573,0.0592855,105210.0,105200.0,2.72571814]
[1748810414812,0.0592855,105210.0,105200.0,2.73238253]
[1748810415252,0.0592855,105210.0,105200.0,2.44210241]
[1748810415479,0.0592855,105210.0,105200.0,2.73226241]
[1748810415704,0.0592855,105210.0,105200.0,2.73226242]
[1748810416149,0.0592855,105210.0,105200.0,2.73226238]
[1748810416610,0.0592855,105210.0,105200.0,2.73226236]
[1748810416852,0.0592855,105210.0,105200.0,2.72559803]
[1748810417062,0.0592855,105210.0,105200.0,2.73226235]
[1748810417724,0.0592855,105210.0,105200.0,2.70782643]
[1748810417943,0.0592855,105210.0,105200.0,2.73226232]
[1748810418467,0.0592855,105210.0,105200.0,2.72559799]
[1748810418691,0.0592855,105210.0,105200.0,2.73226231]
[1748810418918,0.0592855,105210.0,105200.0,2.73226261]
[1748810419620,0.05050594,105220.0,105210.0,0.44704085]
[1748810419888,0.12000823,105250.0,105240.0,0.27558782]
[1748810420136,0.01214307,105260.0,105250.0,1.89123959]
[1748810420389,0.01214307,105260.0,105250.0,1.91869829]
[1748810420621,0.01262884,105260.0,105250.0,2.0319785]
[1748810420856,0.01262884,105260.0,105250.0,2.02906898]
[1748810421315,0.01262884,105260.0,105250.0,1.16167513]
[1748810421561,0.01262884,105260.0,105250.0,1.14528113]
[1748810421800,0.01262884,105260.0,105250.0,1.18041396]
[1748810422020,0.01262884,105260.0,105250.0,1.24365379]
[1748810422302,0.01262884,105260.0,105250.0,1.2679323]
[1748810422519,0.01262884,105260.0,105250.0,1.26793236]
[1748810422942,0.01262884,105260.0,105250.0,1.27693116]
[1748810423358,0.01262884,105260.0,105250.0,1.2769279]
[1748810423774,0.01262884,105260.0,105250.0,1.31634697]
[1748810423984,0.01262884,105260.0,105250.0,1.32295692]
[1748810424206,0.01262884,105260.0,105250.0,1.32778411]
[1748810424426,0.01262884,105260.0,105250.0,1.27682941]
[1748810424690,0.01262884,105260.0,105250.0,1.27659695]
[1748810425215,0.01262884,105260.0,105250.0,1.2589704]
[1748810425477,0.01262884,105260.0,105250.0,1.27657798]
[1748810425717,0.01262884,105260.0,105250.0,1.27657425]
[1748810425950,0.01262884,105260.0,105250.0,1.2735236]
[1748810426215,0.01262884,105260.0,105250.0,0.84374255]
[1748810426414,0.01262884,105260.0,105250.0,0.81954797]
[1748810426639,0.01262884,105260.0,105250.0,0.84374296]
[1748810426857,0.01262884,105260.0,105250.0,0.83714444]
[1748810427079,0.01262884,105260.0,105250.0,0.8437433]
[1748810427991,0.01262884,105260.0,105250.0,0.82614669]
[1748810428215,0.01262884,105260.0,105250.0,0.84373801]
[1748810428858,0.01262884,105260.0,105250.0,0.84373543]
[1748810429799,0.01262884,105260.0,105250.0,0.83890824]
[1748810430008,0.01262884,105260.0,105250.0,0.83890789]
[1748810430247,0.08043224,105280.0,105260.0,0.55850546]
[1748810430460,0.08401133,105270.0,105260.0,0.78268672]
[1748810430672,0.08401133,105270.0,105260.0,0.80594293]
[1748810431304,0.08401133,105270.0,105260.0,1.0783924]
[1748810431518,0.08401133,105270.0,105260.0,1.10298182]
[1748810431727,0.08401133,105270.0,105260.0,1.15481874]
[1748810432071,0.08401133,105270.0,105260.0,1.13063289]
[1748810432283,0.08401133,105270.0,105260.0,1.15481822]
[1748810432780,0.08401133,105270.0,105260.0,0.83407822]
[1748810433024,0.08401133,105270.0,105260.0,1.12769487]
[1748810433219,0.09921133,105270.0,105260.0,1.12769487]
[1748810433380,0.09921133,105270.0,105260.0,1.12769545]
[1748810433584,0.09921133,105270.0,105260.0,1.12769536]
[1748810433808,0.09921133,105270.0,105260.0,1.12770126]
[1748810434066,0.08401133,105270.0,105260.0,1.12770126]
[1748810434598,0.08401133,105270.0,105260.0,1.12770127]
[1748810435176,0.08401133,105270.0,105260.0,1.12770125]
[1748810435378,0.08401133,105270.0,105260.0,1.1277011]
[1748810435509,0.08401133,105270.0,105260.0,1.12770388]
[1748810435714,0.08401133,105270.0,105260.0,1.12770491]
[1748810436378,0.08401133,105270.0,105260.0,1.12770721]
[1748810436519,0.08401133,105270.0,105260.0,1.12770713]
[1748810436715,0.08401133,105270.0,105260.0,1.12771126]
[1748810437253,0.08401133,105270.0,105260.0,1.12409861]
[1748810437453,0.08401133,105270.0,105260.0,1.12409887]
[1748810437661,0.08401133,105270.0,105260.0,1.12409994]
[1748810437938,0.08401133,105270.0,105260.0,1.12410281]
[1748810438210,0.08401133,105270.0,105260.0,1.1241027]
[1748810438393,0.08401133,105270.0,105260.0,1.12410254]
[1748810438570,0.08401133,105270.0,105260.0,1.12410338]
[1748810439172,0.08401133,105270.0,105260.0,1.09989315]
[1748810439374,0.08401133,105270.0,105260.0,1.11750242]
[1748810439582,0.08401133,105270.0,105260.0,1.13511545]
[1748810439761,0.08401133,105270.0,105260.0,1.1241073]
[1748810440004,0.08401133,105270.0,105260.0,1.13511545]
[1748810440183,0.08401133,105270.0,105260.0,1.14172033]
[1748810440878,0.08401133,105270.0,105260.0,1.14172734]
[1748810441163,0.08401133,105270.0,105260.0,1.13512055]
[1748810441601,0.08401133,105270.0,105260.0,1.14172732]
[1748810442353,0.08401133,105270.0,105260.0,1.14173031]
[1748810442568,0.08401133,105270.0,105260.0,1.14173528]
[1748810442785,0.08401133,105270.0,105260.0,1.12411418]
[1748810442962,0.08401133,105270.0,105260.0,1.14174555]
[1748810443166,0.08401133,105270.0,105260.0,1.13692781]
[1748810443761,0.08401133,105270.0,105260.0,1.1369278]
[1748810444215,0.08401133,105270.0,105260.0,1.13693027]
[1748810444502,0.08401133,105270.0,105260.0,1.13693023]
[1748810444714,0.08401133,105270.0,105260.0,1.13693007]
[1748810444936,0.08401133,105270.0,105260.0,1.11929705]
[1748810445133,0.08401133,105270.0,105260.0,1.1369334]
[1748810445473,0.08401133,105270.0,105260.0,1.11268467]
[1748810445693,0.08401133,105270.0,105260.0,1.13695072]
[1748810446130,0.08401133,105270.0,105260.0,1.1369507]
[1748810446348,0.05122165,105270.0,105260.0,1.1369507]
[1748810446665,0.05122165,105270.0,105260.0,0.8469507]
[1748810446880,0.05122165,105270.0,105260.0,1.13695365]
[1748810447564,0.05122165,105270.0,105260.0,1.11930348]
[1748810447784,0.05122165,105270.0,105260.0,1.13696973]
[1748810448249,0.05122165,105270.0,105260.0,1.14669889]
[1748810448479,0.05122165,105270.0,105260.0,1.1466989]
[1748810448688,0.05122165,105270.0,105260.0,1.1467213]
[1748810449103,0.05122165,105270.0,105260.0,1.1467297]
[1748810449564,0.05122165,105270.0,105260.0,1.14672971]
[1748810450239,0.05122165,105270.0,105260.0,1.14677552]
[1748810450464,0.05122165,105270.0,105260.0,1.16795242]